fUSD/lending_fUSD_20260126
["ID","MTS","AMOUNT","RATE_DAILY","PERIOD"]
[403673557,1769463889731,-164.736033,0.00015828,2]
[403673558,1769463892675,-456.1477153,0.00015828,2]
[403673559,1769463895371,-244.33214218,0.00015828,2]
[403673560,1769463897525,-37.52580412,0.00015828,2]
[403673561,1769463897547,-134.87957389,0.00015828,2]
[403673562,1769463901454,-366.82231543,0.00015828,2]
[403673563,1769463905337,-336.5894704,0.00015828,2]
[403673565,1769463915529,-286.6730619,0.00015828,2]
[403673566,1769463917274,-305.4479027,0.00015828,2]
[403673567,1769463919443,-150.77428457,0.00015828,2]
[403673568,1769463919465,-28.20732315,0.00015828,2]
[403673569,1769463922709,-276.67903427,0.00015828,2]
[403673571,1769463927478,-330.14659575,0.00015828,2]
[403673572,1769463929679,-169.07908724,0.00015828,2]
[403673573,1769463932008,-263.99532567,0.00015828,2]
[403673575,1769463932802,3055.64,0.00012621,2]
[403673576,1769463933626,-230.81844795,0.00015828,2]
[403673577,1769463935843,-155.45188026,0.00015828,2]
[403673578,1769463937975,-269.18155205,0.00015828,2]
[403673580,1769463942314,-196.44286658,0.00015828,2]
[403673581,1769463946363,-232.45209817,0.00015828,2]
[403673582,1769463946384,-31.59415486,0.00015828,2]
[403673584,1769463949360,-226.62368792,0.00015828,2]
[403673585,1769463951794,-275.48990071,0.00015828,2]
[403673586,1769463956726,-211.592463,0.00015828,2]
[403673587,1769463959435,-264.83414759,0.00015828,2]
[403673588,1769463962105,-173.57338941,0.00015828,2]
[403673604,1769464030183,-276.42661059,0.000158,5]
[403673605,1769464031596,-223.57338941,0.000158,5]
[403673607,1769464044138,500.0,0.00016,30]
[403673631,1769464116153,181.84,0.00012171,2]
[403673632,1769464151389,818.06314198,0.00015752,2]
[403673633,1769464154100,168.3278045,0.00015727,2]
[403673634,1769464201386,1200.0,0.00015818,2]
[403673635,1769464209271,151.0,0.00015816,2]
[403673651,1769464231884,-362.32877736,0.00015819,2]
[403673652,1769464231895,-585.03852271,0.00015819,2]
[403673653,1769464231927,-29853.16679457,0.00015819,2]
[403673654,1769464231991,-251.0,0.00015819,2]
[403673655,1769464232004,-1626.34538748,0.00015819,2]
[403673656,1769464232016,-13704.57687553,0.00015819,2]
[403673657,1769464232052,-608.20780569,0.00015819,2]
[403673660,1769464237932,-16533.48530457,0.00015819,2]
[403673661,1769464238001,-2937.00000005,0.00015819,2]
[403673662,1769464238164,-1004.0,0.00015819,2]
[403673663,1769464238176,-300.0,0.00015819,2]
[403673677,1769464240092,-932234.85053204,0.00015819,2]
[403673678,1769464240102,-300.0,0.00015827,2]
[403673679,1769464240111,-283.95490059,0.00015828,2]
[403673680,1769464240124,-912.71297161,0.00015828,2]
[403673681,1769464240134,-4010.53897965,0.00015828,2]
[403673682,1769464240143,-250.0,0.00015828,2]
[403673683,1769464240152,-686.02765366,0.00015828,2]
[403673684,1769464240162,-1100.0,0.000159,5]
[403673685,1769464240171,-250.0,0.00015918,2]
[403673686,1769464240180,-500.0,0.00015919,2]
[403673687,1769464240189,-500.0,0.00015919,2]
[403673688,1769464240199,-500.0,0.00015919,2]
[403673689,1769464240208,-500.0,0.00015919,2]
[403673690,1769464240217,-500.0,0.00015919,2]
[403673691,1769464240227,-200.0,0.00015919,2]
[403673692,1769464240237,-500.0,0.00015919,2]
[403673693,1769464240247,-151.0,0.00015919,2]
[403673694,1769464240256,-500.0,0.00015919,2]
[403673695,1769464240265,-500.0,0.00015919,2]
[403673696,1769464240274,-500.0,0.00015919,2]
[403673697,1769464240284,-500.0,0.00015919,2]
[403673698,1769464240294,-500.0,0.00015919,2]
[403673699,1769464240305,-500.0,0.00015919,2]
[403673700,1769464240317,-500.0,0.00015919,2]
[403673701,1769464240326,-500.0,0.00015919,2]
[403673702,1769464240336,-500.0,0.00015919,2]
[403673703,1769464240345,-500.0,0.00015919,2]
[403673704,1769464240356,-500.0,0.00015919,2]
[403673705,1769464240365,-500.0,0.00015919,2]
[403673706,1769464240374,-500.0,0.00015919,2]
[403673707,1769464240384,-500.0,0.00015919,2]
[403673708,1769464240394,-500.0,0.00015919,2]
[403673709,1769464240404,-500.0,0.00015919,2]
[403673710,1769464240412,-500.0,0.00015919,2]
[403673711,1769464240421,-500.0,0.00015919,2]
[403673712,1769464240430,-500.0,0.00015919,2]
[403673713,1769464240439,-151.0,0.00015919,2]
[403673714,1769464240448,-151.0,0.00015919,2]
[403673715,1769464240458,-151.0,0.00015919,2]
[403673716,1769464240469,-200.0,0.00015919,2]
[403673717,1769464240478,-151.0,0.00015919,2]
[403673719,1769464240487,-151.0,0.00015919,2]
[403673720,1769464240497,-151.0,0.00015919,2]
[403673721,1769464240506,-151.0,0.00015919,2]
[403673722,1769464240515,-151.0,0.00015919,2]
[403673723,1769464240524,-151.0,0.00015919,2]
[403673724,1769464240533,-151.0,0.00015919,2]
[403673726,1769464240542,-151.0,0.00015919,2]
[403673727,1769464240551,-151.0,0.00015919,2]
[403673728,1769464240560,-1026.34,0.00015926,2]
[403673729,1769464240570,-500.0,0.00015926,2]
[403673730,1769464240579,-500.0,0.00015926,2]
[403673731,1769464240589,-500.0,0.00015926,2]
[403673732,1769464240599,-500.0,0.00015926,2]
[403673733,1769464240609,-500.0,0.00015926,2]
[403673734,1769464240619,-370.88352756,0.00015926,2]
[403673735,1769464240629,-500.0,0.00015926,2]
[403673736,1769464240639,-500.0,0.00015926,2]
[403673737,1769464240650,-500.0,0.00015926,2]
[403673738,1769464240659,-500.0,0.00015926,2]
[403673739,1769464240668,-500.0,0.00015926,2]
[403673740,1769464240677,-500.0,0.00015926,2]
[403673741,1769464240692,-500.0,0.00015926,2]
[403673742,1769464240700,-500.0,0.00015926,2]
[403673743,1769464240710,-500.0,0.00015926,2]
[403673744,1769464240719,-500.0,0.00015926,2]
[403673745,1769464240730,-500.0,0.00015926,2]
[403673746,1769464240739,-500.0,0.00015926,2]
[403673747,1769464240748,-500.0,0.00015926,2]
[403673748,1769464240759,-500.0,0.00015926,2]
[403673749,1769464240770,-500.0,0.00015926,2]
[403673750,1769464240781,-500.0,0.00015926,2]
[403673751,1769464240791,-500.0,0.00015926,2]
[403673752,1769464240801,-500.0,0.00015926,2]
[403673753,1769464240813,-500.0,0.00015926,2]
[403673754,1769464240822,-500.0,0.00015926,2]
[403673755,1769464240833,-500.0,0.00015926,2]
[403673756,1769464240847,-500.0,0.00015926,2]
[403673757,1769464240858,-500.0,0.00015926,2]
[403673758,1769464240867,-500.0,0.00015926,2]
[403673759,1769464240877,-500.0,0.00015926,2]
[403673760,1769464240887,-500.0,0.00015926,2]
[403673761,1769464240897,-500.0,0.00015926,2]
[403673762,1769464240907,-500.0,0.00015926,2]
[403673763,1769464240919,-500.0,0.00015926,2]
[403673764,1769464240930,-500.0,0.00015926,2]
[403673765,1769464240939,-500.0,0.00015926,2]
[403673766,1769464240951,-550.0,0.00015926,2]
[403673767,1769464240961,-500.0,0.00015926,2]
[403673768,1769464240972,-500.0,0.00015926,2]
[403673769,1769464240982,-500.0,0.00015926,2]
[403673770,1769464240993,-500.0,0.00015926,2]
[403673771,1769464241004,-500.0,0.00015926,2]
[403673772,1769464241013,-500.0,0.00015926,2]
[403673773,1769464241023,-500.0,0.00015926,2]
[403673774,1769464241034,-500.0,0.00015926,2]
[403673775,1769464241043,-500.0,0.00015926,2]
[403673776,1769464241052,-500.0,0.00015926,2]
[403673777,1769464241061,-500.0,0.00015926,2]
[403673778,1769464241070,-500.0,0.00015926,2]
[403673779,1769464241079,-500.0,0.00015926,2]
[403673780,1769464241088,-500.0,0.00015926,2]
[403673781,1769464241098,-500.0,0.00015926,2]
[403673782,1769464241107,-500.0,0.00015926,2]
[403673783,1769464241116,-500.0,0.00015926,2]
[403673784,1769464241126,-500.0,0.00015926,2]
[403673785,1769464241135,-500.0,0.00015926,2]
[403673786,1769464241145,-500.0,0.00015926,2]
[403673787,1769464241154,-500.0,0.00015926,2]
[403673788,1769464241164,-500.0,0.00015926,2]
[403673789,1769464241173,-500.0,0.00015926,2]
[403673790,1769464241183,-500.0,0.00015926,2]
[403673791,1769464241192,-290.14590864,0.00015926,2]
[403673792,1769464241201,-500.0,0.00015926,2]
[403673793,1769464241212,-500.0,0.00015926,2]
[403673794,1769464241221,-500.0,0.00015926,2]
[403673795,1769464241230,-500.0,0.00015926,2]
[403673796,1769464241239,-500.0,0.00015926,2]
[403673797,1769464241248,-500.0,0.00015926,2]
[403673798,1769464241257,-500.0,0.00015926,2]
[403673799,1769464241267,-500.0,0.00015926,2]
[403673800,1769464241276,-349.99999999,0.00015926,2]
[403673801,1769464241285,-500.0,0.00015926,2]
[403673802,1769464241295,-500.0,0.00015926,2]
[403673803,1769464241304,-500.0,0.00015926,2]
[403673804,1769464241313,-500.0,0.00015926,2]
[403673805,1769464241322,-500.0,0.00015926,2]
[403673806,1769464241332,-500.0,0.00015926,2]
[403673807,1769464241341,-500.0,0.00015926,2]
[403673808,1769464241351,-500.0,0.00015926,2]
[403673809,1769464241362,-970.53658305,0.00015927,5]
[403673810,1769464241372,-500.0,0.00015927,2]
[403673811,1769464241381,-500.0,0.00015927,2]
[403673812,1769464241390,-600.40964335,0.00015927,2]
[403673813,1769464241400,-500.0,0.00015927,2]
[403673814,1769464241409,-500.0,0.00015927,2]
[403673815,1769464241419,-598.24931453,0.00015927,2]
[403673816,1769464241429,-500.0,0.00015927,2]
[403673817,1769464241439,-500.0,0.00015927,2]
[403673818,1769464241448,-500.0,0.00015927,2]
[403673819,1769464241458,-554.41535433,0.00015927,2]
[403673820,1769464241467,-500.0,0.00015927,2]
[403673821,1769464241475,-500.0,0.00015927,2]
[403673822,1769464241486,-500.0,0.00015927,2]
[403673823,1769464241497,-500.0,0.00015927,2]
[403673824,1769464241506,-500.0,0.00015927,2]
[403673825,1769464241516,-500.0,0.00015927,2]
[403673826,1769464241525,-500.0,0.00015927,2]
[403673827,1769464241535,-500.0,0.00015927,2]
[403673828,1769464241544,-500.0,0.00015927,2]
[403673829,1769464241553,-500.0,0.00015927,2]
[403673830,1769464241562,-500.0,0.00015927,2]
[403673831,1769464241572,-500.0,0.00015927,2]
[403673832,1769464241581,-624.55953129,0.00015927,2]
[403673833,1769464241590,-500.0,0.00015927,2]
[403673834,1769464241599,-500.0,0.00015927,2]
[403673835,1769464241608,-500.0,0.00015927,2]
[403673836,1769464241617,-506.33966749,0.00015927,2]
[403673837,1769464241626,-500.0,0.00015927,2]
[403673838,1769464241635,-500.0,0.00015927,2]
[403673839,1769464241644,-500.0,0.00015927,2]
[403673840,1769464241654,-163.09240909,0.00015927,2]
[403673841,1769464241663,-179.58508742,0.00015927,2]
[403673842,1769464241674,-158.65833628,0.00015927,2]
[403673843,1769464241684,-407.60029148,0.00015927,2]
[403673844,1769464241693,-500.0,0.00015927,2]
[403673845,1769464241702,-392.406752,0.00015927,2]
[403673846,1769464241711,-500.0,0.00015927,2]
[403673847,1769464241720,-392.81588719,0.00015927,2]
[403673848,1769464241730,-150.0,0.00015927,2]
[403673849,1769464241740,-33257.5075,0.00015928,2]
[403673850,1769464241750,-4316.7639,0.00015928,2]
[403673851,1769464241760,-1000.0,0.00015928,2]
[403673852,1769464241769,-150.00134094,0.00015992,2]
[403673853,1769464241779,-184.676792,0.00016,2]
[403673854,1769464241791,-2000.0,0.00016,2]
[403673855,1769464241802,-200.0,0.00016,2]
[403673856,1769464241816,-4010.53897965,0.00016058,2]
[403673857,1769464241825,-448.17762938,0.00016127,2]
[403673858,1769464241838,-226.94622895,0.00016127,2]
[403673859,1769464241849,-500.0,0.00016127,2]
[403673860,1769464241858,-500.0,0.00016127,2]
[403673861,1769464241867,-500.0,0.00016127,2]
[403673862,1769464241877,-260.22250185,0.00016127,2]
[403673863,1769464241886,-500.0,0.00016127,2]
[403673864,1769464241895,-500.0,0.00016127,2]
[403673865,1769464241904,-541.65463355,0.00016127,2]
[403673866,1769464241917,-500.0,0.00016127,2]
[403673867,1769464241926,-500.0,0.00016127,2]
[403673868,1769464241935,-500.0,0.00016127,2]
[403673869,1769464241944,-500.0,0.00016127,2]
[403673870,1769464241954,-500.0,0.00016127,2]
[403673871,1769464241964,-500.0,0.00016127,2]
[403673872,1769464241976,-500.0,0.00016127,2]
[403673873,1769464241986,-500.0,0.00016127,2]
[403673874,1769464241996,-500.0,0.00016127,2]
[403673875,1769464242006,-500.0,0.00016127,2]
[403673876,1769464242015,-500.0,0.00016127,2]
[403673877,1769464242024,-500.0,0.00016127,2]
[403673878,1769464242034,-500.0,0.00016127,2]
[403673879,1769464242044,-500.0,0.00016127,2]
[403673880,1769464242054,-500.0,0.00016127,2]
[403673881,1769464242064,-500.0,0.00016127,2]
[403673882,1769464242074,-500.0,0.00016127,2]
[403673883,1769464242083,-500.0,0.00016127,2]
[403673884,1769464242092,-500.0,0.00016127,2]
[403673885,1769464242101,-500.0,0.00016127,2]
[403673886,1769464242110,-509.44466748,0.00016127,2]
[403673887,1769464242121,-500.0,0.00016127,2]
[403673888,1769464242130,-500.0,0.00016127,2]
[403673889,1769464242143,-500.0,0.00016127,2]
[403673890,1769464242151,-531.4641031,0.00016127,2]
[403673891,1769464242160,-500.0,0.00016127,2]
[403673892,1769464242169,-500.0,0.00016127,2]
[403673893,1769464242182,-462.63319291,0.00016127,2]
[403673894,1769464242192,-500.0,0.00016127,2]
[403673895,1769464242202,-500.0,0.00016127,2]
[403673896,1769464242211,-500.0,0.00016127,2]
[403673897,1769464242220,-500.0,0.00016127,2]
[403673898,1769464242230,-500.0,0.00016127,2]
[403673899,1769464242239,-500.0,0.00016127,2]
[403673900,1769464242249,-500.0,0.00016127,2]
[403673901,1769464242258,-500.0,0.00016127,2]
[403673902,1769464242268,-500.0,0.00016127,2]
[403673903,1769464242279,-609.90965872,0.00016127,2]
[403673904,1769464242288,-151.0,0.00016132,2]
[403673905,1769464242298,-151.0,0.00016134,2]
[403673906,1769464242307,-151.0,0.00016135,2]
[403673907,1769464242317,-151.0,0.00016137,2]
[403673908,1769464242326,-1026.34,0.000162,2]
[403673909,1769464242335,-715.99785921,0.00016206,2]
[403673910,1769464242344,-838.0,0.00016252,2]
[403673911,1769464242533,-411.0,0.00016282,2]
[403673912,1769464242542,-306.0,0.00016282,2]
[403673913,1769464242552,-4010.53897965,0.00016288,2]
[403673914,1769464242561,-316.79,0.00016293,2]
[403673915,1769464242570,-301.0,0.00016315,2]
[403673916,1769464242579,-378.02376998,0.00016346,2]
[403673917,1769464242588,-715.0,0.00016365,2]
[403673918,1769464242598,-859.57,0.00016368,2]
[403673919,1769464242606,-254.97899767,0.00016373,2]
[403673920,1769464242615,-168.32780448,0.00016418,2]
[403673921,1769464242625,-855.53695193,0.00016428,2]
[403673922,1769464242634,-411.79218368,0.00016437,2]
[403673923,1769464242644,-447.597522,0.00016437,2]
[403673924,1769464242653,-201.139,0.00016437,2]
[403673925,1769464242662,-1000.0,0.00016438,2]
[403673926,1769464242671,-1000.00000001,0.00016438,2]
[403673927,1769464242680,-500.0,0.00016438,2]
[403673928,1769464242690,-419.69674445,0.00016438,2]
[403673929,1769464242698,-316.79448902,0.00016438,2]
[403673930,1769464242707,-235.18438983,0.00016438,2]
[403673931,1769464242718,-500.0,0.00016438,2]
[403673932,1769464242727,-500.0,0.00016438,2]
[403673933,1769464242736,-500.0,0.00016438,2]
[403673934,1769464242746,-500.0,0.00016438,2]
[403673935,1769464242755,-500.0,0.00016438,2]
[403673936,1769464242765,-500.0,0.00016438,2]
[403673937,1769464242774,-500.0,0.00016438,2]
[403673938,1769464242783,-500.0,0.00016438,2]
[403673939,1769464242791,-500.0,0.00016438,2]
[403673940,1769464242800,-500.0,0.00016438,2]
[403673941,1769464242810,-500.0,0.00016438,2]
[403673942,1769464242819,-500.0,0.00016438,2]
[403673943,1769464242828,-500.0,0.00016438,2]
[403673944,1769464242839,-500.0,0.00016438,2]
[403673945,1769464242851,-500.0,0.00016438,2]
[403673946,1769464242862,-500.0,0.00016438,2]
[403673947,1769464242873,-500.0,0.00016438,2]
[403673949,1769464242884,-500.0,0.00016438,2]
[403673950,1769464242892,-500.0,0.00016438,2]
[403673952,1769464242901,-500.0,0.00016438,2]
[403673954,1769464242910,-500.0,0.00016438,2]
[403673956,1769464242920,-500.0,0.00016438,2]
[403673958,1769464242930,-500.0,0.00016438,2]
[403673960,1769464242939,-500.0,0.00016438,2]
[403673963,1769464242948,-500.0,0.00016438,2]
[403673965,1769464242957,-500.0,0.00016438,2]
[403673967,1769464242966,-500.0,0.00016438,2]
[403673970,1769464242976,-500.0,0.00016438,2]
[403673972,1769464242985,-500.0,0.00016438,2]
[403673974,1769464242994,-500.0,0.00016438,2]
[403673976,1769464243003,-500.0,0.00016438,2]
[403673978,1769464243012,-500.0,0.00016438,2]
[403673980,1769464243021,-500.0,0.00016438,2]
[403673982,1769464243031,-500.0,0.00016438,2]
[403673984,1769464243040,-500.0,0.00016438,2]
[403673986,1769464243049,-500.0,0.00016438,2]
[403673988,1769464243059,-500.0,0.00016438,2]
[403673990,1769464243068,-500.0,0.00016438,2]
[403673992,1769464243077,-475.81954888,0.00016438,2]
[403673994,1769464243087,-500.0,0.00016438,2]
[403673996,1769464243097,-500.0,0.00016438,2]
[403673999,1769464243107,-500.0,0.00016438,2]
[403674001,1769464243118,-500.0,0.00016438,2]
[403674003,1769464243128,-500.0,0.00016438,2]
[403674005,1769464243137,-500.0,0.00016438,2]
[403674007,1769464243146,-500.0,0.00016438,2]
[403674009,1769464243156,-500.0,0.00016438,2]
[403674011,1769464243165,-500.0,0.00016438,2]
[403674013,1769464243174,-500.0,0.00016438,2]
[403674015,1769464243183,-500.0,0.00016438,2]
[403674017,1769464243193,-500.0,0.00016438,2]
[403674019,1769464243202,-500.0,0.00016438,2]
[403674021,1769464243212,-500.0,0.00016438,2]
[403674023,1769464243221,-1743.78235061,0.00016438,2]
[403674025,1769464243231,-1743.78235061,0.00016438,2]
[403674027,1769464243240,-1743.78235061,0.00016438,2]
[403674029,1769464243250,-1743.78235061,0.00016438,2]
[403674031,1769464243259,-1743.78235061,0.00016438,2]
[403674033,1769464243268,-1743.78235061,0.00016438,2]
[403674035,1769464243277,-1743.78235061,0.00016438,2]
[403674036,1769464243287,-1743.78235061,0.00016438,2]
[403674037,1769464243295,-1743.78235061,0.00016438,2]
[403674039,1769464243306,-1743.78235061,0.00016438,2]
[403674041,1769464243315,-1743.78235061,0.00016438,2]
[403674043,1769464243324,-1743.78235061,0.00016438,2]
[403674045,1769464243334,-1743.78235061,0.00016438,2]
[403674047,1769464243344,-1743.78235061,0.00016438,2]
[403674049,1769464243354,-1743.78235061,0.00016438,2]
[403674051,1769464243363,-1743.78235061,0.00016438,2]
[403674052,1769464243373,-1743.78235061,0.00016438,2]
[403674054,1769464243382,-1743.78235061,0.00016438,2]
[403674055,1769464243391,-1743.78235061,0.00016438,2]
[403674057,1769464243400,-1743.78235061,0.00016438,2]
[403674059,1769464243409,-1743.78235061,0.00016438,2]
[403674060,1769464243418,-1743.78235061,0.00016438,2]
[403674061,1769464243427,-1743.78235061,0.00016438,2]
[403674062,1769464243437,-1743.78235061,0.00016438,2]
[403674063,1769464243447,-1743.78235061,0.00016438,2]
[403674064,1769464243456,-1743.78235061,0.00016438,2]
[403674065,1769464243467,-1743.78235061,0.00016438,2]
[403674066,1769464243477,-1743.78235061,0.00016438,2]
[403674067,1769464243487,-1743.78235061,0.00016438,2]
[403674069,1769464243497,-1743.78235061,0.00016438,2]
[403674071,1769464243506,-1743.78235061,0.00016438,2]
[403674073,1769464243515,-1743.78235061,0.00016438,2]
[403674075,1769464243524,-1743.78235061,0.00016438,2]
[403674076,1769464243533,-1743.78235061,0.00016438,2]
[403674077,1769464243542,-1763.15771003,0.00016438,2]
[403674078,1769464243552,-1763.15771003,0.00016438,2]
[403674080,1769464243561,-1763.15771003,0.00016438,2]
[403674082,1769464243570,-1763.15771003,0.00016438,2]
[403674083,1769464243579,-1763.15771001,0.00016438,2]
[403674084,1769464243588,-300.0,0.00016438,2]
[403674085,1769464243598,-300.0,0.00016438,2]
[403674086,1769464243607,-300.0,0.00016438,2]
[403674087,1769464243617,-300.0,0.00016438,2]
[403674088,1769464243626,-300.0,0.00016438,2]
[403674089,1769464243637,-300.0,0.00016438,2]
[403674091,1769464243646,-300.0,0.00016438,2]
[403674093,1769464243656,-300.0,0.00016438,2]
[403674095,1769464243665,-300.0,0.00016438,2]
[403674097,1769464243675,-300.0,0.00016438,2]
[403674099,1769464243684,-260.51,0.00016438,2]
[403674100,1769464243694,-500.0,0.00016438,2]
[403674101,1769464243704,-500.0,0.00016438,2]
[403674102,1769464243714,-500.0,0.00016438,2]
[403674103,1769464243724,-500.0,0.00016438,2]
[403674104,1769464243735,-500.0,0.00016438,2]
[403674105,1769464243744,-798.0,0.00016438,2]
[403674106,1769464243753,-800.0,0.00016438,2]
[403674107,1769464243763,-267.46074303,0.00016438,2]
[403674108,1769464243773,-500.0,0.00016467,2]
[403674109,1769464243783,-1026.34,0.00016474,2]
[403674110,1769464243793,-4010.53897965,0.00016519,2]
[403674111,1769464243802,-500.0,0.00016684,2]
[403674112,1769464243811,-1026.34,0.00016748,2]
[403674113,1769464243821,-4010.53897965,0.00016749,2]
[403674114,1769464243832,-2158.88157471,0.00016752,2]
[403674115,1769464243844,-3808.52299819,0.00016752,2]
[403674116,1769464243853,-5697.32263249,0.00016752,2]
[403674117,1769464243863,-7708.6746,0.00016752,2]
[403674118,1769464243872,-155.0,0.00016848,2]
[403674119,1769464243883,-500.0,0.00016849,2]
[403674120,1769464243892,-378.02376998,0.00016864,2]
[403674121,1769464243901,-10993.8477933,0.000169,2]
[403674122,1769464243911,-316.79,0.00016904,2]
[403674123,1769464243920,-4010.53897965,0.00016979,2]
[403674124,1769464243930,-798.0,0.00016986,2]
[403674125,1769464243939,-203.86,0.00016992,2]
[403674126,1769464243948,-500.0,0.00017015,2]
[403674127,1769464243958,-1026.34,0.00017022,2]
[403674128,1769464243967,-168.32780448,0.00017109,2]
[403674129,1769464243976,-4010.53897965,0.00017209,2]
[403674130,1769464243986,-155.0,0.00017259,2]
[403674131,1769464243996,-1026.34,0.00017296,2]
[403674132,1769464244005,-150.00134094,0.00017343,2]
[403674133,1769464244014,-837.0,0.0001736,2]
[403674134,1769464244023,-378.02376998,0.00017382,2]
[403674135,1769464244033,-1680.0,0.00017384,2]
[403674136,1769464244042,-195.0,0.00017411,2]
[403674137,1769464244051,-600.0,0.00017411,2]
[403674138,1769464244061,-200.0,0.00017411,2]
[403674139,1769464244070,-200.0,0.00017411,2]
[403674140,1769464244079,-200.0,0.00017411,2]
[403674141,1769464244089,-200.0,0.00017411,2]
[403674142,1769464244098,-208.68914964,0.00017411,2]
[403674143,1769464244107,-250.0,0.00017411,2]
[403674144,1769464244116,-300.0,0.00017411,2]
[403674145,1769464244126,-4010.53897965,0.0001744,2]
[403674146,1769464244135,-2096.4207151,0.00017452,2]
[403674147,1769464244144,-159.33586697,0.00017479,2]
[403674148,1769464244154,-1700.0,0.000175,6]
[403674149,1769464244163,-316.79,0.00017515,2]
[403674150,1769464244172,-500.0,0.00017563,2]
[403674151,1769464244182,-1026.34,0.0001757,2]
[403674152,1769464244191,-2300.0,0.000176,6]
[403674153,1769464244201,-155.0,0.0001767,2]
[403674154,1769464244211,-4010.53897965,0.0001767,2]
[403674155,1769464244220,-2800.0,0.000177,6]
[403674156,1769464244229,-500.0,0.000178,6]
[403674157,1769464244238,-200.0,0.00017808,5]
[403674158,1769464244248,-200.0,0.00017808,5]
[403674159,1769464244257,-200.0,0.00017808,5]
[403674160,1769464244267,-200.0,0.00017808,5]
[403674161,1769464244276,-200.0,0.00017808,5]
[403674162,1769464244286,-200.0,0.00017808,5]
[403674163,1769464244295,-200.0,0.00017808,5]
[403674164,1769464244306,-200.0,0.00017808,5]
[403674165,1769464244315,-200.0,0.00017808,5]
[403674166,1769464244326,-200.0,0.00017808,5]
[403674167,1769464244336,-200.0,0.00017808,5]
[403674168,1769464244346,-200.0,0.00017808,5]
[403674169,1769464244356,-200.0,0.00017808,5]
[403674170,1769464244366,-200.0,0.00017808,5]
[403674171,1769464244375,-200.0,0.00017808,5]
[403674172,1769464244384,-200.0,0.00017808,5]
[403674173,1769464244394,-200.0,0.00017808,5]
[403674174,1769464244403,-200.0,0.00017808,5]
[403674175,1769464244412,-200.0,0.00017808,5]
[403674176,1769464244421,-200.0,0.00017808,5]
[403674177,1769464244430,-200.0,0.00017808,5]
[403674178,1769464244439,-200.0,0.00017808,5]
[403674179,1769464244449,-200.0,0.00017808,5]
[403674180,1769464244458,-200.0,0.00017808,5]
[403674181,1769464244467,-200.0,0.00017808,5]
[403674182,1769464244476,-200.0,0.00017808,5]
[403674183,1769464244485,-200.0,0.00017808,5]
[403674184,1769464244494,-200.0,0.00017808,5]
[403674185,1769464244504,-200.0,0.00017808,5]
[403674186,1769464244513,-200.0,0.00017808,5]
[403674187,1769464244522,-200.0,0.00017808,5]
[403674188,1769464244531,-200.0,0.00017808,5]
[403674189,1769464244540,-200.0,0.00017808,5]
[403674190,1769464244550,-200.0,0.00017808,5]
[403674191,1769464244559,-200.0,0.00017808,5]
[403674192,1769464244568,-200.0,0.00017808,5]
[403674193,1769464244577,-200.0,0.00017808,5]
[403674194,1769464244586,-200.0,0.00017808,5]
[403674195,1769464244596,-298.129632,0.00017808,5]
[403674196,1769464244605,-446.04265821,0.00017811,2]
[403674197,1769464244614,-500.0,0.00017836,2]
[403674198,1769464244624,-1026.41466997,0.00017844,2]